bitfinex/quotes_BTCUSD_20250414
["timestamp","ask_amount","ask_price","bid_price","bid_amount"]
[1744627837464,0.011801,84732.0,84730.0,0.00737721]
[1744627837966,0.011801,84733.0,84730.0,0.00737721]
[1744627838210,0.011801,84733.0,84731.0,0.00737721]
[1744627838438,0.011801,84733.0,84732.0,0.00737721]
[1744627839625,0.013801,84733.0,84732.0,0.00737721]
[1744627840541,0.200639,84730.0,84727.0,0.00737721]
[1744627840720,0.011802,84728.0,84725.0,0.011802]
[1744627840919,0.011802,84728.0,84726.0,0.0073741]
[1744627841341,0.011802,84728.0,84727.0,0.0073741]
[1744627842284,0.201639,84730.0,84727.0,0.0073741]
[1744627842496,0.001,84730.0,84728.0,0.188839]
[1744627842704,0.001,84730.0,84729.0,0.0464]
[1744627843120,0.001,84730.0,84729.0,0.0537741]
[1744627843417,0.011801,84736.0,84733.0,0.011801]
[1744627843627,0.200627,84734.0,84730.0,0.011802]
[1744627843840,0.011801,84735.0,84731.0,0.0191761]
[1744627844055,0.011801,84735.0,84732.0,0.011801]
[1744627844480,0.200627,84734.0,84731.0,0.0191761]
[1744627844698,0.011801,84735.0,84733.0,0.0073741]
[1744627845146,0.001,84735.0,84734.0,0.0073741]
[1744627845821,0.003,84735.0,84734.0,0.0073741]
[1744627846232,0.002,84735.0,84734.0,0.0073741]
[1744627846445,0.004,84735.0,84734.0,0.0073741]
[1744627847371,0.005,84735.0,84734.0,0.0073741]
[1744627847583,0.193823,84735.0,84734.0,0.0073741]
[1744627847810,0.193823,84735.0,84734.0,0.00737366]
[1744627848261,0.005,84735.0,84734.0,0.00737366]
[1744627848925,0.00504,84735.0,84734.0,0.00737366]
[1744627855187,0.193863,84735.0,84734.0,0.00737366]
[1744627860613,0.00504,84735.0,84734.0,0.4614472]
[1744627861690,0.00104,84735.0,84734.0,0.4614472]
[1744627861874,0.00104,84735.0,84734.0,0.4634472]
[1744627862207,4e-05,84735.0,84734.0,0.4634472]
[1744627862416,4e-05,84735.0,84734.0,0.4664472]
[1744627862613,4e-05,84735.0,84734.0,0.4674472]
[1744627863241,4e-05,84735.0,84734.0,0.4664472]
[1744627863453,4e-05,84735.0,84734.0,0.4684472]
[1744627863660,4e-05,84735.0,84734.0,0.47883572]
[1744627864078,0.0068858,84750.0,84747.0,0.247795]
[1744627864287,0.247779,84753.0,84749.0,0.011799]
[1744627864488,0.235985,84751.0,84748.0,0.25516366]
[1744627864698,0.235985,84751.0,84750.0,0.01776218]
[1744627865096,0.2482042,84752.0,84750.0,0.01776218]
[1744627865302,0.00046178,84751.0,84750.0,0.01776218]
[1744627866141,0.00246178,84751.0,84750.0,0.01776218]
[1744627866979,0.00346178,84751.0,84750.0,0.01776218]
[1744627870267,0.00346178,84751.0,84750.0,0.06736218]
[1744627871128,0.00346178,84751.0,84750.0,0.06795218]
[1744627871343,0.00146178,84751.0,84750.0,0.06795218]
[1744627871760,0.00146178,84751.0,84750.0,0.01835218]
[1744627871966,0.00046178,84751.0,84750.0,0.01835218]
[1744627879858,0.00046178,84751.0,84750.0,0.25434018]
[1744627880066,0.00046178,84751.0,84750.0,0.01835218]
[1744627880603,0.00046178,84751.0,84750.0,0.25434018]
[1744627880811,0.00046178,84751.0,84750.0,0.01835218]
[1744627881436,0.23644678,84751.0,84750.0,0.01835218]
[1744627881857,0.28584678,84751.0,84750.0,0.01097852]
[1744627882286,0.67224678,84751.0,84750.0,0.00059]
[1744627882537,0.79308832,84751.0,84750.0,0.00059]
[1744627882735,0.79308832,84751.0,84750.0,1e-06]
[1744627883772,0.79508832,84751.0,84750.0,1e-06]
[1744627884378,0.79608832,84751.0,84750.0,1e-06]
[1744627885589,0.79612832,84751.0,84750.0,1e-06]
[1744627886842,0.67528678,84751.0,84750.0,1e-06]
[1744627887270,0.62588678,84751.0,84750.0,1e-06]
[1744627887485,0.57948678,84751.0,84750.0,1e-06]
[1744627887718,0.57948678,84751.0,84750.0,0.235989]
[1744627887719,0.00350178,84751.0,84750.0,0.235989]
[1744627887941,0.00350178,84751.0,84750.0,1e-06]
[1744627888154,0.00350178,84751.0,84750.0,0.01742714]
[1744627889001,0.00250178,84751.0,84750.0,0.01742714]
[1744627889431,0.00050178,84751.0,84750.0,0.01742714]
[1744627889639,0.00150178,84751.0,84750.0,0.01742714]
[1744627890273,0.00250178,84751.0,84750.0,0.01742714]
[1744627890489,0.00350178,84751.0,84750.0,0.01742714]
[1744627890928,0.00250178,84751.0,84750.0,0.01742714]
[1744627899182,0.00250178,84751.0,84750.0,0.14062839]
[1744627899949,0.00050178,84751.0,84750.0,0.14062839]
[1744627901137,0.00050178,84751.0,84750.0,0.13826868]
[1744627904549,0.23648678,84751.0,84750.0,0.01742714]
[1744627905407,0.00050178,84751.0,84750.0,0.01742714]
[1744627906364,0.00050178,84751.0,84750.0,0.25341514]
[1744627906568,0.00050178,84751.0,84750.0,0.01742714]
[1744627913062,0.00050178,84751.0,84750.0,0.25341514]
[1744627913526,0.00050178,84751.0,84750.0,0.01742714]
[1744627913967,0.00050178,84751.0,84750.0,0.25341514]
[1744627914227,0.24370098,84753.0,84750.0,0.25341514]
[1744627914446,0.24383943,84753.0,84750.0,0.25341514]
[1744627914747,0.24383943,84753.0,84751.0,0.01005357]
[1744627914875,0.24383943,84753.0,84751.0,0.01742614]
[1744627915098,0.24384043,84753.0,84751.0,0.25341114]
[1744627915308,0.23611745,84753.0,84752.0,0.00737257]
[1744627915529,0.00013845,84753.0,84752.0,0.00737257]
[1744627916083,0.00013845,84753.0,84752.0,0.01742614]
[1744627916999,0.23611745,84753.0,84752.0,0.01742614]
[1744627926631,0.00013845,84753.0,84752.0,0.01742614]
[1744627926881,0.00013845,84753.0,84752.0,0.25340814]
[1744627927494,0.00013845,84753.0,84752.0,0.29860814]
[1744627928106,0.00013845,84753.0,84752.0,0.41944968]
[1744627928315,0.00013845,84753.0,84752.0,0.46534968]
[1744627930191,0.00013845,84753.0,84752.0,0.46734968]
[1744627930602,0.00013845,84753.0,84752.0,0.47034968]
[1744627932190,0.00013845,84753.0,84752.0,0.48489053]
[1744627933573,0.0004222,84758.0,84757.0,0.235968]
[1744627933741,0.0004222,84758.0,84757.0,0.35680954]
[1744627933963,0.0004222,84758.0,84757.0,0.36418211]
[1744627934834,0.0004222,84758.0,84757.0,0.37623568]
[1744627935647,0.0004222,84758.0,84757.0,0.01942614]
[1744627935850,0.0004222,84758.0,84757.0,0.02042614]
[1744627937152,0.0004222,84758.0,84757.0,0.24902157]
[1744627937359,0.2363872,84758.0,84757.0,0.01305357]
[1744627937563,0.5763872,84758.0,84757.0,0.01305357]
[1744627938182,0.5763872,84758.0,84757.0,0.02042614]
[1744627939389,0.3404222,84758.0,84757.0,0.02042614]
[1744627939544,0.5763872,84758.0,84757.0,0.02042614]
[1744627940176,0.6254872,84758.0,84757.0,0.01305357]
[1744627940786,0.6705872,84758.0,84757.0,0.01305357]
[1744627941552,0.6705872,84758.0,84757.0,0.003]
[1744627942485,0.79142874,84758.0,84757.0,0.003]
[1744627942894,0.667385,84751.0,84750.0,1e-06]
[1744627943104,0.78822654,84751.0,84750.0,1e-06]
[1744627944390,1.21926739,84751.0,84750.0,1e-06]
[1744627944602,0.236071,84720.0,84719.0,0.01005357]
[1744627944807,0.576071,84720.0,84719.0,0.01005357]
[1744627945020,0.576071,84720.0,84718.0,0.0008446]
[1744627945788,0.576071,84720.0,84719.0,0.003]
[1744627945993,0.34,84720.0,84719.0,0.005]
[1744627946429,0.34,84720.0,84719.0,0.003]
[1744627947082,0.34,84720.0,84718.0,0.23938238]
[1744627947491,0.34,84720.0,84718.0,0.24138238]
[1744627947925,0.34,84720.0,84719.0,0.002]
[1744627948318,0.34,84720.0,84719.0,0.004]
[1744627948532,0.011801,84734.0,84729.0,0.011802]
[1744627948736,0.236027,84736.0,84732.0,0.011801]
[1744627948947,0.011801,84737.0,84732.0,0.011801]
[1744627949148,0.247816,84740.0,84735.0,0.236029]
[1744627949352,0.576019,84739.0,84736.0,0.236024]
[1744627949554,0.011801,84738.0,84734.0,0.011801]
[1744627949766,0.011799,84749.0,84744.0,0.236002]
[1744627949983,0.235989,84750.0,84747.0,0.247794]
[1744627950190,0.575988,84750.0,84745.0,0.2478]
[1744627950394,1.290279,84751.0,84745.0,0.0118]
[1744627950395,0.34,84748.0,84745.0,0.0118]
[1744627950602,0.34,84746.0,84743.0,0.0118]
[1744627950816,0.587798,84746.0,84743.0,0.0118]
[1744627951156,0.58791772,84746.0,84743.0,0.0118]
[1744627951569,0.58791772,84746.0,84733.0,0.011801]
[1744627951570,0.236026,84737.0,84733.0,0.011801]
[1744627951952,0.0118,84740.0,84735.0,0.011801]
[1744627952160,0.34,84742.0,84739.0,0.236017]
[1744627952360,0.34,84742.0,84738.0,0.247821]
[1744627952361,0.236014,84741.0,84738.0,0.247821]
[1744627954276,0.247814,84741.0,84738.0,0.247821]
[1744627954897,0.248814,84741.0,84738.0,0.247821]
[1744627955120,0.002,84741.0,84739.0,0.236018]
[1744627955888,0.001,84741.0,84739.0,0.236018]
[1744627956287,0.002,84741.0,84739.0,0.236018]
[1744627956485,0.002,84741.0,84740.0,0.00737275]
[1744627956964,0.001,84741.0,84740.0,0.29248875]
[1744627957176,0.001,84741.0,84740.0,0.41333029]
[1744627957372,0.004,84741.0,84740.0,0.41333029]
[1744627957504,0.004,84741.0,84740.0,0.40595754]
[1744627957910,0.006,84741.0,84740.0,0.40595754]
[1744627958106,0.007,84741.0,84740.0,0.40595754]
[1744627958308,0.001,84741.0,84740.0,0.40595754]
[1744627958519,0.003,84741.0,84740.0,0.40595754]
[1744627959340,0.002,84741.0,84740.0,0.40595754]
[1744627959550,0.002,84741.0,84740.0,0.35685754]
[1744627967556,0.011799,84748.0,84745.0,0.247802]
[1744627968002,0.236019,84739.0,84734.0,0.247832]
[1744627968233,0.011801,84733.0,84728.0,0.011802]
[1744627968457,0.011801,84736.0,84733.0,0.236035]
[1744627968658,0.236019,84739.0,84733.0,0.011801]
[1744627968887,0.0118,84739.0,84736.0,0.011801]
[1744627969094,0.0118,84739.0,84734.0,0.011801]
[1744627969298,0.236028,84736.0,84734.0,0.011801]
[1744627969505,0.011801,84736.0,84734.0,0.236032]
[1744627969831,0.011801,84736.0,84735.0,0.00737322]
[1744627970182,0.011801,84736.0,84734.0,0.00737322]
[1744627970381,0.011801,84737.0,84735.0,0.236029]
[1744627970612,0.247825,84737.0,84734.0,0.01917422]
[1744627970762,0.011801,84737.0,84734.0,0.01917422]
[1744627971176,0.247827,84737.0,84734.0,0.25520522]
[1744627971377,0.247827,84737.0,84735.0,0.00737322]
[1744627971378,0.236027,84736.0,84735.0,0.00737322]
[1744627972092,0.236027,84736.0,84734.0,0.00837322]
[1744627972580,0.236027,84736.0,84734.0,0.00737322]
[1744627972806,0.011801,84735.0,84732.0,0.247833]
[1744627973032,0.011801,84734.0,84731.0,0.236038]
[1744627973269,0.236038,84732.0,84729.0,0.236045]
[1744627973487,0.011801,84734.0,84731.0,0.236041]
[1744627974010,0.011801,84734.0,84732.0,0.236038]
[1744627974226,0.011801,84734.0,84730.0,0.011802]
[1744627974749,0.247836,84733.0,84730.0,0.011802]
[1744627975261,0.011801,84734.0,84731.0,0.247842]
[1744627975483,0.247835,84734.0,84731.0,0.247842]
[1744627975691,0.011801,84732.0,84729.0,0.011802]
[1744627975929,0.011801,84732.0,84730.0,0.236043]
[1744627976153,0.247841,84732.0,84729.0,0.247846]
[1744627976410,0.001,84734.0,84731.0,0.236041]
[1744627976641,0.236037,84733.0,84730.0,0.011802]
[1744627976875,0.001,84732.0,84731.0,0.236041]
[1744627977748,0.011801,84734.0,84731.0,0.24341443]
[1744627977995,0.011801,84734.0,84732.0,0.236037]
[1744627978186,0.001,84733.0,84732.0,0.236037]
[1744627978896,0.001,84733.0,84732.0,0.24341013]
[1744627979234,0.011801,84736.0,84733.0,0.236035]
[1744627980177,0.247828,84736.0,84733.0,0.011801]
[1744627980422,0.011802,84731.0,84725.0,0.011802]
[1744627980634,0.011802,84729.0,84723.0,0.247865]
[1744627980836,0.236052,84727.0,84714.0,0.011804]
[1744627981057,0.236052,84727.0,84714.0,0.24789]
[1744627981255,0.236052,84727.0,84716.0,0.248729]
[1744627981463,0.236052,84727.0,84717.0,0.247883]
[1744627981878,0.236052,84727.0,84719.0,0.011803]
[1744627982572,0.236052,84727.0,84726.0,0.00146178]
[1744627991929,0.236052,84727.0,84726.0,0.00046178]
[1744627993788,0.576052,84727.0,84726.0,0.00046178]
[1744627994180,0.622052,84727.0,84726.0,0.00046178]
[1744627995219,0.623052,84727.0,84726.0,0.00046178]
[1744627995761,0.624052,84727.0,84726.0,0.00046178]
[1744628003376,0.798652,84727.0,84726.0,0.00046178]
[1744628011483,0.91949354,84727.0,84726.0,0.00046178]
[1744628011689,1.39883439,84727.0,84726.0,7.8e-07]
[1744628011892,1.51956287,84727.0,84726.0,7.8e-07]
[1744628012102,1.51856287,84727.0,84726.0,7.8e-07]
[1744628012279,1.39883439,84727.0,84726.0,7.8e-07]
[1744628012632,1.39783439,84727.0,84726.0,7.8e-07]
[1744628013049,1.42192427,84727.0,84726.0,7.8e-07]
[1744628013485,1.41992427,84727.0,84726.0,7.8e-07]
[1744628013660,1.39783439,84727.0,84726.0,7.8e-07]
[1744628013867,1.39983439,84727.0,84726.0,7.8e-07]
[1744628014067,1.39883439,84727.0,84726.0,7.8e-07]
[1744628014318,1.40383439,84727.0,84726.0,7.8e-07]
[1744628014865,1.52456287,84727.0,84726.0,7.8e-07]
[1744628015876,1.54664202,84727.0,84726.0,7.8e-07]
[1744628017102,1.54764202,84727.0,84726.0,7.8e-07]
[1744628017309,1.58903735,84727.0,84726.0,7.8e-07]
[1744628018577,1.5599582,84727.0,84726.0,7.8e-07]
[1744628018778,1.5619582,84727.0,84726.0,7.8e-07]
[1744628018988,1.5679582,84727.0,84726.0,7.8e-07]
[1744628019186,0.3875,84706.0,84684.0,0.0008444]
[1744628019388,0.34,84704.0,84684.0,0.0008444]
[1744628019588,0.69696054,84703.0,84684.0,0.0008444]
[1744628020766,0.70564013,84703.0,84684.0,0.0008444]
[1744628020975,0.70764013,84703.0,84684.0,0.0008444]
[1744628022435,0.72018303,84703.0,84684.0,0.0008444]
[1744628022831,0.72118303,84703.0,84684.0,0.0008444]
[1744628023090,1.20988054,84703.0,84684.0,0.0008444]
[1744628023396,1.13768303,84703.0,84684.0,0.0008444]
[1744628026139,1.13768303,84703.0,84686.0,0.0126524]
[1744628026612,1.31232303,84703.0,84690.0,0.0495]
[1744628028730,1.13768303,84703.0,84690.0,0.0495]
[1744628028935,1.31232303,84703.0,84690.0,0.0495]
[1744628033410,1.32867815,84703.0,84686.0,0.0008444]
[1744628033756,1.31232303,84703.0,84686.0,0.0008444]
[1744628036470,1.37536388,84703.0,84702.0,6e-07]
[1744628036666,1.42406388,84703.0,84702.0,6e-07]
[1744628037372,1.42206388,84703.0,84702.0,6e-07]
[1744628037700,1.42506388,84703.0,84702.0,6e-07]
[1744628038304,1.42506388,84703.0,84686.0,0.0008444]
[1744628038305,0.34,84692.0,84689.0,8e-07]
[1744628038536,0.576155,84690.0,84689.0,8e-07]
[1744628038742,0.69699654,84690.0,84689.0,8e-07]
[1744628039224,0.69699654,84690.0,84686.0,2e-07]
[1744628039225,0.576163,84687.0,84686.0,2e-07]
[1744628039473,1.11350454,84687.0,84686.0,2e-07]
[1744628039711,1.11350454,84687.0,84686.0,0.00013865]
[1744628039953,1.11350454,84687.0,84675.0,0.0008446]
[1744628039954,0.576177,84682.0,84681.0,4.5e-07]
[1744628040173,0.87157854,84682.0,84681.0,0.00012017]
[1744628041838,0.90712076,84682.0,84681.0,0.00012017]
[1744628042232,0.90912076,84682.0,84681.0,0.00012017]
[1744628042645,0.576186,84679.0,84678.0,7.7e-07]
[1744628042845,0.71156839,84679.0,84678.0,5.52e-05]
[1744628042990,0.74711061,84679.0,84678.0,5.52e-05]
[1744628043425,1.16361061,84679.0,84678.0,5.52e-05]
[1744628043852,1.16661061,84679.0,84678.0,5.52e-05]
[1744628045070,1.13106839,84679.0,84678.0,5.52e-05]
[1744628045476,1.13306839,84679.0,84678.0,5.52e-05]
[1744628047176,1.14185477,84679.0,84678.0,5.52e-05]
[1744628051231,1.12731392,84679.0,84678.0,5.52e-05]
[1744628051464,0.78731392,84679.0,84678.0,5.52e-05]
[1744628051740,0.84107238,84679.0,84678.0,5.52e-05]
[1744628052194,1.00647238,84679.0,84678.0,5.52e-05]
[1744628052385,0.76457238,84679.0,84678.0,5.52e-05]
[1744628054347,0.755786,84679.0,84678.0,5.52e-05]
[1744628055201,0.753786,84679.0,84678.0,5.52e-05]
[1744628055340,0.755786,84679.0,84678.0,5.52e-05]
[1744628055545,0.752786,84679.0,84678.0,5.52e-05]
[1744628055749,0.755786,84679.0,84678.0,5.52e-05]
[1744628059112,0.75481924,84679.0,84678.0,5.52e-05]
[1744628062647,0.58021924,84679.0,84678.0,5.52e-05]
[1744628062847,0.75477924,84679.0,84678.0,5.52e-05]
[1744628089550,0.86589861,84679.0,84678.0,5.52e-05]
[1744628090180,0.75477924,84679.0,84678.0,5.52e-05]
[1744628094565,0.75461924,84679.0,84678.0,5.52e-05]
[1744628100314,0.581186,84679.0,84678.0,0.05633433]
[1744628101283,0.579186,84679.0,84678.0,0.05633433]
[1744628101462,0.580186,84679.0,84678.0,0.05633433]
[1744628101831,0.577186,84679.0,84678.0,0.05633433]
[1744628102658,0.578186,84679.0,84678.0,0.05633433]
[1744628105542,0.578186,84679.0,84678.0,0.00743433]
[1744628106337,0.578186,84679.0,84678.0,5.52e-05]
[1744628109294,0.578186,84679.0,84678.0,0.00743418]
[1744628109533,0.2362,84674.0,84673.0,0.04224684]
[1744628109778,0.2362,84674.0,84673.0,0.04238544]
[1744628110941,0.2362,84674.0,84673.0,0.0001386]
[1744628115666,0.41036,84674.0,84673.0,0.0001386]
[1744628121760,0.41036,84674.0,84673.0,0.00751796]
[1744628130428,0.2362,84674.0,84673.0,0.00751796]
[1744628134934,0.2362,84674.0,84673.0,0.0001386]
[1744628136029,0.2362,84674.0,84673.0,0.00751771]
[1744628137206,0.2362,84674.0,84673.0,0.01764608]
[1744628144674,0.2362,84674.0,84673.0,0.0001386]
[1744628147247,0.69704154,84674.0,84673.0,6e-07]
[1744628147468,0.576213,84669.0,84668.0,1e-06]
[1744628147696,0.236261,84652.0,84651.0,0.002]
[1744628147868,0.236261,84652.0,84651.0,0.0021386]
[1744628148913,0.24885165,84652.0,84651.0,0.0021386]
[1744628149728,0.24885165,84652.0,84651.0,0.0031386]
[1744628149950,0.24885165,84652.0,84651.0,0.0061386]
[1744628151374,0.25767877,84652.0,84651.0,0.0061386]
[1744628151802,0.24885165,84652.0,84651.0,0.0061386]
[1744628158316,0.87485201,84652.0,84651.0,6e-07]
[1744628158530,0.75729319,84652.0,84651.0,6e-07]
[1744628158775,0.57628,84645.0,84641.0,0.0008448]
[1744628160247,0.57828,84645.0,84641.0,0.0008448]
[1744628160452,0.74672154,84645.0,84644.0,2e-07]
[1744628161058,0.74872154,84645.0,84644.0,2e-07]
[1744628161529,0.74672154,84645.0,84644.0,2e-07]
[1744628162108,0.74872154,84645.0,84644.0,2e-07]
[1744628162286,0.74672154,84645.0,84644.0,2e-07]
[1744628164165,0.75072154,84645.0,84644.0,2e-07]
[1744628170606,0.70312154,84645.0,84644.0,2e-07]
[1744628181195,0.87660154,84645.0,84644.0,2e-07]
[1744628188653,0.576289,84642.0,84641.0,1e-06]
[1744628188840,0.69713054,84642.0,84641.0,1e-06]
[1744628189833,0.69913054,84642.0,84641.0,1e-06]
[1744628190436,0.70113054,84642.0,84641.0,1e-06]
[1744628193107,1.11763054,84642.0,84641.0,1e-06]
[1744628194332,1.23835902,84642.0,84641.0,1e-06]
[1744628194661,1.11763054,84642.0,84641.0,1e-06]
[1744628202731,1.11763054,84642.0,84639.0,0.0008446]
[1744628202732,0.576294,84640.0,84639.0,6e-07]
[1744628202901,0.82633693,84640.0,84639.0,6e-07]
[1744628203874,1.25737778,84640.0,84639.0,6e-07]
[1744628204038,1.37810626,84640.0,84639.0,6e-07]
[1744628204641,1.25737778,84640.0,84639.0,6e-07]
[1744628205408,1.25937778,84640.0,84639.0,6e-07]
[1744628205856,1.25837778,84640.0,84639.0,6e-07]
[1744628206068,1.26337778,84640.0,84639.0,6e-07]
[1744628206290,1.26237778,84640.0,84639.0,6e-07]
[1744628206493,1.38564278,84640.0,84639.0,6e-07]
[1744628207438,0.576345,84622.0,84610.0,0.0008448]
[1744628207667,0.749425,84622.0,84618.0,0.0466]
[1744628208165,0.576345,84622.0,84621.0,0.0516]
[1744628208371,0.749425,84622.0,84621.0,0.1015]
[1744628208749,0.74947107,84622.0,84621.0,0.1025]
[1744628210038,0.74947107,84622.0,84621.0,0.003]
[1744628210783,0.75822867,84622.0,84621.0,0.003]
[1744628239673,4.607e-05,84622.0,84621.0,0.003]
[1744628240133,0.23639107,84622.0,84621.0,0.0507]
[1744628241936,4.607e-05,84622.0,84621.0,0.0507]
[1744628243772,4.607e-05,84622.0,84621.0,0.0962]
[1744628245936,4.607e-05,84622.0,84621.0,0.103583]
[1744628246625,4.607e-05,84622.0,84621.0,0.11373619]
[1744628246826,4.607e-05,84622.0,84621.0,0.02053619]
[1744628249402,4.607e-05,84622.0,84621.0,0.25688319]
[1744628257423,4.607e-05,84622.0,84621.0,0.37772473]
[1744628257619,4.607e-05,84622.0,84621.0,0.47172473]
[1744628257816,4.607e-05,84622.0,84621.0,0.48626558]
[1744628258576,4.607e-05,84622.0,84621.0,0.48526558]
[1744628258822,0.00104607,84622.0,84621.0,0.49326558]
[1744628259237,0.00104607,84622.0,84621.0,0.49126558]
[1744628261194,0.00104607,84622.0,84621.0,0.49426558]
[1744628265093,0.00104607,84622.0,84621.0,0.50254109]
[1744628265445,7e-08,84622.0,84621.0,0.50254109]
[1744628265655,7e-08,84622.0,84621.0,1.26124109]
[1744628266020,0.183932,84659.0,84654.0,0.248065]
[1744628266241,0.18397821,84659.0,84656.0,0.011812]
[1744628266593,0.42022021,84659.0,84657.0,0.007383]
[1744628266715,4.621e-05,84659.0,84657.0,0.243629]
[1744628266911,4.621e-05,84659.0,84658.0,0.045]
[1744628267186,4.621e-05,84659.0,84658.0,0.05515319]
[1744628267416,4.621e-05,84659.0,84658.0,0.18573988]
[1744628267750,4.621e-05,84659.0,84658.0,0.23113988]
[1744628267949,4.621e-05,84659.0,84658.0,0.23940509]
[1744628268172,4.621e-05,84659.0,84658.0,0.23704294]
[1744628268706,4.621e-05,84659.0,84658.0,0.23804294]
[1744628269304,4.621e-05,84659.0,84658.0,0.24304294]
[1744628275834,4.621e-05,84659.0,84658.0,0.25758379]
[1744628276134,4.621e-05,84659.0,84658.0,0.25558379]
[1744628276918,4.621e-05,84659.0,84658.0,0.49182779]
[1744628277519,4.621e-05,84659.0,84658.0,0.48782779]
[1744628277922,4.621e-05,84659.0,84658.0,0.49182779]
[1744628278132,4.621e-05,84659.0,84658.0,0.49482779]
[1744628278525,4.621e-05,84659.0,84658.0,0.91052779]
[1744628278727,2.1e-07,84659.0,84658.0,0.90326258]
[1744628278939,0.0004222,84673.0,84672.0,0.29754585]
[1744628278940,2e-07,84673.0,84672.0,0.29754585]
[1744628279143,2e-07,84673.0,84672.0,0.88228739]
[1744628279716,2e-07,84673.0,84672.0,0.89982358]
[1744628280932,2e-07,84673.0,84672.0,0.90482358]
[1744628281130,2e-07,84673.0,84672.0,0.90882358]
[1744628281739,2e-07,84673.0,84672.0,0.89982358]
[1744628281910,2e-07,84673.0,84672.0,0.90482358]
[1744628282109,2e-07,84673.0,84672.0,0.91082358]
[1744628284401,2e-07,84679.0,84678.0,0.25072885]
[1744628284695,2e-07,84679.0,84678.0,0.59239039]
[1744628285042,2e-07,84679.0,84678.0,0.59977339]
[1744628285589,2e-07,84679.0,84678.0,0.61392658]
[1744628286271,2e-07,84679.0,84678.0,0.97378573]
[1744628286472,2e-07,84679.0,84678.0,0.80226573]
[1744628287299,2e-07,84679.0,84678.0,0.37956573]
[1744628287495,2e-07,84679.0,84678.0,0.14637773]
[1744628287718,0.2361862,84679.0,84678.0,0.14637773]
[1744628288120,0.2361862,84679.0,84678.0,0.13122454]
[1744628288301,2e-07,84679.0,84678.0,0.13422454]
[1744628288501,0.2361862,84679.0,84678.0,0.13422454]
[1744628291998,0.2361862,84679.0,84678.0,0.013383]
[1744628292425,0.2361862,84679.0,84678.0,0.006]
[1744628294237,0.2844862,84679.0,84678.0,0.006]
[1744628294477,0.3338862,84679.0,84678.0,0.006]
[1744628296277,0.3338862,84679.0,84678.0,0.013383]
[1744628298958,0.3338862,84679.0,84678.0,0.006]
[1744628299917,0.3338862,84679.0,84678.0,0.013383]
[1744628304800,0.2361862,84679.0,84678.0,0.013383]
[1744628307310,2e-07,84679.0,84678.0,0.013383]
[1744628307510,0.2361862,84679.0,84678.0,0.006]
[1744628309755,0.2361862,84679.0,84678.0,0.013383]
[1744628310762,0.2361862,84679.0,84678.0,0.006]
[1744628311710,0.2361862,84679.0,84678.0,0.013383]
[1744628313920,0.2361862,84679.0,84678.0,0.006]
[1744628314176,0.6680862,84679.0,84678.0,0.006]
[1744628314899,0.78892774,84679.0,84678.0,0.003]
[1744628315373,0.236205,84672.0,84671.0,0.01844736]
[1744628315830,0.236205,84672.0,84654.0,0.007383]
[1744628315831,0.236253,84655.0,84654.0,0.007383]
[1744628316075,0.236259,84653.0,84651.0,0.011813]
[1744628316267,0.236266,84651.0,84648.0,0.248083]
[1744628316434,0.236266,84651.0,84650.0,4.621e-05]
[1744628316719,0.236266,84651.0,84650.0,0.12088775]
[1744628316923,0.236266,84651.0,84650.0,0.12826779]
[1744628317107,0.236266,84651.0,84650.0,0.00742625]
[1744628317711,0.236266,84651.0,84650.0,0.01242625]
[1744628318191,0.237266,84651.0,84650.0,0.02042625]
[1744628318416,0.237266,84651.0,84650.0,0.00742625]
[1744628318648,0.237266,84651.0,84650.0,0.01042625]
[1744628318849,0.237266,84651.0,84650.0,0.01442625]
[1744628319007,0.237266,84651.0,84650.0,0.00704621]
[1744628320677,0.237266,84651.0,84650.0,0.00404621]
[1744628321096,0.237266,84651.0,84650.0,0.00604621]
[1744628321300,0.236266,84651.0,84650.0,0.00204621]
[1744628321679,0.236266,84651.0,84650.0,4.621e-05]
[1744628321900,0.236266,84651.0,84650.0,0.00204621]
[1744628322102,0.236266,84651.0,84650.0,0.00404621]
[1744628326327,0.283166,84651.0,84650.0,0.00404621]
[1744628326530,0.328966,84651.0,84650.0,0.00404621]
[1744628326950,0.328966,84651.0,84650.0,0.00204621]
[1744628327535,0.328966,84651.0,84650.0,0.00404621]
[1744628327930,0.328966,84651.0,84650.0,0.00204621]
[1744628328299,0.668966,84651.0,84650.0,0.00104621]
[1744628328503,0.668966,84651.0,84650.0,4.621e-05]
[1744628328504,0.78980754,84651.0,84650.0,4.621e-05]
[1744628329286,0.79080754,84651.0,84650.0,4.621e-05]
[1744628329652,0.79080754,84651.0,84650.0,0.00104621]
[1744628330044,0.79080754,84651.0,84650.0,4.621e-05]
[1744628330523,0.79480754,84651.0,84650.0,4.621e-05]
[1744628330700,0.79380754,84651.0,84650.0,4.621e-05]
[1744628330904,0.80080754,84651.0,84650.0,0.00104621]
[1744628332329,0.80080754,84651.0,84650.0,2.1e-07]
[1744628333887,1.21730754,84651.0,84650.0,2.1e-07]
[1744628336044,0.23628,84645.0,84644.0,0.000844]
[1744628336248,0.91668154,84645.0,84644.0,0.000844]
[1744628337152,0.91968154,84645.0,84644.0,0.000844]
[1744628337401,0.668597,84639.0,84638.0,0.000844]
[1744628337532,0.78943854,84639.0,84638.0,0.0009205]
[1744628339816,0.79143854,84639.0,84638.0,0.0009205]
[1744628340230,0.79543854,84639.0,84638.0,0.0009205]
[1744628341073,0.79543854,84639.0,84638.0,5e-07]
[1744628341389,1.22647939,84639.0,84638.0,5e-07]
[1744628342179,1.22647939,84639.0,84617.0,0.0008448]
[1744628342363,0.669545,84622.0,84621.0,0.00046331]
[1744628342567,0.96154654,84622.0,84621.0,0.00046331]
[1744628343573,0.96354654,84622.0,84621.0,0.00046331]
[1744628344091,0.96154654,84622.0,84621.0,0.00046331]
[1744628344481,0.96754654,84622.0,84621.0,0.00046331]
[1744628345919,0.97652906,84622.0,84621.0,0.00046331]
[1744628346225,0.97652906,84622.0,84621.0,3.1e-07]
[1744628350007,0.97652906,84622.0,84621.0,3.1e-07]
[1744628350508,0.71216906,84622.0,84621.0,3.1e-07]
[1744628351741,0.59132752,84622.0,84621.0,3.1e-07]
[1744628352140,0.76208752,84622.0,84621.0,3.1e-07]
[1744628357628,0.78414272,84622.0,84621.0,3.1e-07]
[1744628359967,0.79241781,84622.0,84621.0,3.1e-07]
[1744628360704,0.77036261,84622.0,84621.0,3.1e-07]
[1744628361332,0.77036261,84622.0,84621.0,0.04860031]
[1744628361647,0.59132752,84622.0,84621.0,0.04860031]
[1744628362075,0.582345,84622.0,84621.0,0.04860031]